[Event "FIDE WCCC Open-12 2024"]
[Site "Montesilvano"]
[Date "2024.11.20"]
[Round "6.65"]
[White "Mamarasulov, Husan"]
[Black "Andreiev, Andrii"]
[Result "0-1"]
[ECO "D53"]
[WhiteElo "1407"]
[BlackElo "1704"]
[Annotator "NA RC"]
[PlyCount "90"]
[EventDate "2024.11.18"]
[EventType "swiss"]
[EventCountry "ITA"]
[SourceTitle "playchess.com"]
[Source "ChessBase"]
[SourceQuality "1"]
[TimeControl "5400+30"]

1. d4 {[%emt 0:00:02]} d5 {[%emt 0:00:06]} 2. c4 {[%emt 0:00:02]} e6 {[%emt 0:00:03]} 3. Nc3 {[%emt 0:00:04]} Nf6 {[%emt 0:00:08]} 4. Bg5 {[%emt 0:00:04]} Be7 {[%emt 0:00:04]} 5. e3 {[%emt 1:32:48]} b6 {[%emt 0:00:15]} 6. Bd3 {[%emt 0:00:00]} h6 {[%emt 0:01:42]} 7. Bh4 {[%emt 0:00:00]} O-O {[%emt 0:00:12]} 8. Nge2 {[%emt 0:00:00]} Bb7 {[%emt 0:00:19]} 9. O-O {[%emt 0:00:00]} a6 {[%emt 0:01:24]} 10. f3 {[%emt 0:00:00]} c5 {[%emt 0:03:06]} 11. b3 {[%emt 0:00:00]} Nc6 {[%emt 0:04:19]} 12. Bf2 {[%emt 0:00:00]} Rc8 {[%emt 0:06:15]} 13. a3 {[%emt 0:00:00]} e5 {[%emt 0:04:22]} 14. Bc2 {[%emt 0:00:00]} exd4 {[%emt 0:02:47]} 15. exd4 {[%emt 0:00:00]} cxd4 {[%emt 0:00:18]} 16. Nxd4 {[%emt 0:00:00]} dxc4 {[%emt 0:00:37]} 17. bxc4 {[%emt 0:00:00]} Nxd4 {[%emt 0:00:59]} 18. Bxd4 {[%emt 0:00:00]} Rxc4 {[%emt 0:00:53]} 19. Ne2 {[%emt 0:00:00]} Rxd4 {[%emt 0:03:35]} 20. Nxd4 {[%emt 0:00:00]} Bc5 {[%emt 0:00:17]} 21. Rb1 {[%emt 0:00:00]} Qxd4+ {[%emt 0:02:04]} 22. Kh1 {[%emt 0:00:00]} Rd8 {[%emt 0:01:37]} 23. Qxd4 {[%emt 0:00:00]} Rxd4 {[%emt 0:00:28]} 24. Rfd1 {[%emt 0:00:00]} Kf8 {[%emt 0:02:42]} 25. Rxd4 {[%emt 0:00:00]} Bxd4 {[%emt 0:00:11]} 26. a4 {[%emt 0:00:00]} Ke7 {[%emt 0:00:36]} 27. a5 {[%emt 0:00:00]} b5 {[%emt 0:00:21]} 28. Rd1 {[%emt 0:00:00]} Bc3 {[%emt 0:00:23]} 29. Bb3 {[%emt 0:00:00]} Bxa5 {[%emt 0:00:52]} 30. Kg1 {[%emt 0:00:00]} Bb6+ {[%emt 0:00:38]} 31. Kf1 {[%emt 0:00:00]} a5 {[%emt 0:00:10]} 32. Ke2 {[%emt 0:00:00]} a4 {[%emt 0:01:07]} 33. Ba2 {[%emt 0:00:00]} b4 {[%emt 0:00:29]} 34. Kd2 {[%emt 0:00:00]} b3 {[%emt 0:01:03]} 35. Bb1 {[%emt 0:00:00]} Kd6 {[%emt 0:00:19]} 36. Kc3+ {[%emt 0:00:00]} Nd5+ {[%emt 0:01:02]} 37. Kb2 {[%emt 0:00:00]} Kc5 {[%emt 0:00:26]} 38. Be4 {[%emt 0:00:00]} f5 {[%emt 0:01:04]} 39. Bxf5 {[%emt 0:00:00]} Ne3 {[%emt 0:00:21]} 40. Rc1+ {[%emt 0:00:00]} Kb4 {[%emt 0:00:21]} 41. Be4 {[%emt 0:00:00]} a3+ {[%emt 0:00:12]} 42. Kb1 {[%emt 0:00:00]} a2+ {[%emt 0:00:20]} 43. Kb2 {[%emt 0:00:00]} Bd4+ {[%emt 0:00:29]} 44. Rc3 {[%emt 0:00:00]} Bxc3+ {[%emt 0:00:04]} 45. Kc1 {[%emt 0:00:00]} b2# {[%emt 0:00:55]} 0-1